[Event "Titled Tuesday Blitz November 22 Early 2022"]
[White "Mihailidis, Anastasios"]
[Black "Aloma Vidal, Robert"]
[WhiteFideId "4205588"]
[BlackFideId "2260409"]
[WhiteElo "2312"]
[BlackElo "2435"]
[Result "0-1"]
[Round "04"]
[TimeControl "180+1"]
[Date "2022.11.23"]
[WhiteClock "0:00:50"]
[BlackClock "0:01:40"]

1. e4 {[%clk 0:03:00]}  e5 {[%clk 0:02:59]} 2. Nf3 {[%clk 0:03:01]}  Nf6 {[%clk 0:03:00]} 3. Nxe5 {[%clk 0:03:01]}  d6 {[%clk 0:03:00]} 4. Nf3 {[%clk 0:03:01]}  Nxe4 {[%clk 0:03:01]} 5. Nc3 {[%clk 0:03:01]}  Nf6 {[%clk 0:03:00]} 6. d4 {[%clk 0:02:59]}  g6 {[%clk 0:03:01]} 7. Be3 {[%clk 0:03:00]}  Bg7 {[%clk 0:03:00]} 8. h3 {[%clk 0:03:00]}  O-O {[%clk 0:02:58]} 9. Bd3 {[%clk 0:03:00]}  Nc6 {[%clk 0:02:53]} 10. O-O {[%clk 0:03:00]}  Nb4 {[%clk 0:02:53]} 11. a3 {[%clk 0:02:58]}  Nxd3 {[%clk 0:02:53]} 12. Qxd3 {[%clk 0:02:59]}  Bf5 {[%clk 0:02:53]} 13. Qd2 {[%clk 0:02:59]}  Re8 {[%clk 0:02:50]} 14. Rfe1 {[%clk 0:02:59]}  c6 {[%clk 0:02:46]} 15. Bg5 {[%clk 0:02:57]}  Qb6 {[%clk 0:02:39]} 16. b3 {[%clk 0:02:48]}  Ne4 {[%clk 0:02:27]} 17. Nxe4 {[%clk 0:02:43]}  Bxe4 {[%clk 0:02:28]} 18. Be3 {[%clk 0:02:18]}  Bxf3 {[%clk 0:02:21]} 19. gxf3 {[%clk 0:02:19]}  d5 {[%clk 0:02:19]} 20. b4 {[%clk 0:02:15]}  a5 {[%clk 0:02:17]} 21. c3 {[%clk 0:02:15]}  axb4 {[%clk 0:02:17]} 22. axb4 {[%clk 0:02:15]}  Qc7 {[%clk 0:02:14]} 23. Bf4 {[%clk 0:02:12]}  Qd7 {[%clk 0:02:14]} 24. Kg2 {[%clk 0:02:11]}  Qf5 {[%clk 0:02:14]} 25. Bg3 {[%clk 0:02:10]}  h5 {[%clk 0:02:13]} 26. h4 {[%clk 0:02:09]}  Bf6 {[%clk 0:02:12]} 27. Rxe8+ {[%clk 0:01:39]}  Rxe8 {[%clk 0:02:10]} 28. Ra7 {[%clk 0:01:35]}  g5 {[%clk 0:01:46]} 29. hxg5 {[%clk 0:01:27]}  Bxg5 {[%clk 0:01:47]} 30. Qd1 {[%clk 0:01:04]}  h4 {[%clk 0:01:46]} 31. Be5 {[%clk 0:01:02]}  f6 {[%clk 0:01:42]} 32. Bh2 {[%clk 0:00:54]}  h3+ {[%clk 0:01:42]} 33. Kh1 {[%clk 0:00:53]}  Re1+ {[%clk 0:01:40]} 34. Qxe1 {[%clk 0:00:50]}  Qxf3+ {[%clk 0:01:40]} 35. Kg1 {[%clk 0:00:50]}  Qg2# {[%clk 0:01:40]} 0-1


[Site "https://www.chess.com"]

[Event "Titled Tuesday Blitz November 22 Early 2022"]
[White "Miszler, Levente"]
[Black "Grabinsky, Vladimir"]
[WhiteFideId "763276"]
[BlackFideId "14107074"]
[WhiteElo "2176"]
[BlackElo "2198"]
[Result "1-0"]
[Round "04"]
[TimeControl "180+1"]
[Date "2022.11.23"]
[WhiteClock "0:02:17"]
[BlackClock "0:00:42"]

1. Nf3 {[%clk 0:02:59]}  c5 {[%clk 0:02:55]} 2. c4 {[%clk 0:02:58]}  Nc6 {[%clk 0:02:55]} 3. g3 {[%clk 0:02:58]}  e5 {[%clk 0:02:54]} 4. Nc3 {[%clk 0:02:58]}  g6 {[%clk 0:02:55]} 5. Bg2 {[%clk 0:02:58]}  Bg7 {[%clk 0:02:55]} 6. O-O {[%clk 0:02:59]}  Nge7 {[%clk 0:02:56]} 7. Ne1 {[%clk 0:02:59]}  O-O {[%clk 0:02:56]} 8. Nc2 {[%clk 0:02:59]}  d6 {[%clk 0:02:49]} 9. Ne3 {[%clk 0:03:00]}  Rb8 {[%clk 0:02:49]} 10. a3 {[%clk 0:02:57]}  a6 {[%clk 0:02:49]} 11. Ned5 {[%clk 0:02:54]}  b5 {[%clk 0:02:46]} 12. b3 {[%clk 0:02:51]}  bxc4 {[%clk 0:02:26]} 13. bxc4 {[%clk 0:02:52]}  Nd4 {[%clk 0:02:20]} 14. e3 {[%clk 0:02:48]}  Nb3 {[%clk 0:02:15]} 15. Rb1 {[%clk 0:02:45]}  Nxc1 {[%clk 0:01:07]} 16. Rxb8 {[%clk 0:02:44]}  Nd3 {[%clk 0:01:01]} 17. Be4 {[%clk 0:02:16]}  Nxd5 {[%clk 0:00:42]} 18. Nxd5 {[%clk 0:02:17]} 1-0


[Site "https://www.chess.com"]

[Event "Titled Tuesday Blitz November 22 Early 2022"]
[White "Mortazavi, Ali"]
[Black "Tristan, Leonardo"]
[WhiteFideId "401323"]
[BlackFideId "113816"]
[WhiteElo "2339"]
[BlackElo "2461"]
[Result "0-1"]
[Round "04"]
[TimeControl "180+1"]
[Date "2022.11.23"]
[WhiteClock "0:00:03"]
[BlackClock "0:01:20"]

1. Nf3 {[%clk 0:02:51]}  d5 {[%clk 0:03:00]} 2. g3 {[%clk 0:02:51]}  Nf6 {[%clk 0:03:00]} 3. Bg2 {[%clk 0:02:50]}  Bf5 {[%clk 0:03:00]} 4. O-O {[%clk 0:02:51]}  e6 {[%clk 0:03:01]} 5. d3 {[%clk 0:02:52]}  Be7 {[%clk 0:03:01]} 6. c4 {[%clk 0:02:51]}  c6 {[%clk 0:03:02]} 7. Be3 {[%clk 0:02:51]}  dxc4 {[%clk 0:02:53]} 8. dxc4 {[%clk 0:02:47]}  Nbd7 {[%clk 0:02:54]} 9. b4 {[%clk 0:02:22]}  Bxb4 {[%clk 0:02:43]} 10. Qb3 {[%clk 0:02:22]}  Bc5 {[%clk 0:02:44]} 11. Nd4 {[%clk 0:02:01]}  Be4 {[%clk 0:02:38]} 12. Bxe4 {[%clk 0:01:54]}  Nxe4 {[%clk 0:02:37]} 13. Qxb7 {[%clk 0:01:54]}  Qc8 {[%clk 0:02:29]} 14. Qxc6 {[%clk 0:01:40]}  Qxc6 {[%clk 0:02:29]} 15. Nxc6 {[%clk 0:01:41]}  Bxe3 {[%clk 0:02:29]} 16. fxe3 {[%clk 0:01:42]}  f6 {[%clk 0:02:17]} 17. Na3 {[%clk 0:01:36]}  a6 {[%clk 0:02:12]} 18. Rf4 {[%clk 0:01:02]}  Ndc5 {[%clk 0:02:09]} 19. Rd1 {[%clk 0:00:51]}  Kf7 {[%clk 0:02:04]} 20. Nc2 {[%clk 0:00:34]}  Rhc8 {[%clk 0:02:00]} 21. Na5 {[%clk 0:00:23]}  Rd8 {[%clk 0:01:56]} 22. Rd4 {[%clk 0:00:22]}  e5 {[%clk 0:01:53]} 23. Rxd8 {[%clk 0:00:12]}  Rxd8 {[%clk 0:01:53]} 24. Rh4 {[%clk 0:00:12]}  Rd1+ {[%clk 0:01:46]} 25. Kg2 {[%clk 0:00:12]}  Rd2 {[%clk 0:01:46]} 26. Nb4 {[%clk 0:00:12]}  Rxe2+ {[%clk 0:01:46]} 27. Kf1 {[%clk 0:00:12]}  Rf2+ {[%clk 0:01:42]} 28. Ke1 {[%clk 0:00:12]}  Rb2 {[%clk 0:01:42]} 29. Nac6 {[%clk 0:00:10]}  a5 {[%clk 0:01:41]} 30. Nd5 {[%clk 0:00:06]}  Nd3+ {[%clk 0:01:42]} 31. Kf1 {[%clk 0:00:06]}  Ng5 {[%clk 0:01:28]} 32. Nd8+ {[%clk 0:00:03]}  Ke8 {[%clk 0:01:25]} 33. Nc6 {[%clk 0:00:03]}  Nf3 {[%clk 0:01:20]} 0-1


[Site "https://www.chess.com"]

[Event "Titled Tuesday Blitz November 22 Early 2022"]
[White "Mrudul Dehankar"]
[Black "Barria Zuniga, Daniel"]
[WhiteFideId "25096990"]
[BlackFideId "3400816"]
[WhiteElo "2068"]
[BlackElo "2414"]
[Result "0-1"]
[Round "04"]
[TimeControl "180+1"]
[Date "2022.11.23"]
[WhiteClock "0:00:01"]
[BlackClock "0:00:10"]

1. e4 {[%clk 0:02:43]}  c5 {[%clk 0:02:59]} 2. Nf3 {[%clk 0:02:19]}  Nc6 {[%clk 0:02:59]} 3. d4 {[%clk 0:02:16]}  cxd4 {[%clk 0:03:00]} 4. Nxd4 {[%clk 0:02:13]}  e6 {[%clk 0:03:00]} 5. Nc3 {[%clk 0:01:57]}  Qc7 {[%clk 0:02:58]} 6. Be2 {[%clk 0:01:52]}  a6 {[%clk 0:02:56]} 7. O-O {[%clk 0:01:47]}  Na5 {[%clk 0:02:54]} 8. f4 {[%clk 0:01:46]}  b5 {[%clk 0:02:54]} 9. Bf3 {[%clk 0:01:44]}  Bb7 {[%clk 0:02:53]} 10. Kh1 {[%clk 0:01:43]}  d6 {[%clk 0:02:33]} 11. Qd3 {[%clk 0:01:39]}  Nf6 {[%clk 0:02:30]} 12. Re1 {[%clk 0:01:19]}  Be7 {[%clk 0:02:26]} 13. a4 {[%clk 0:01:11]}  b4 {[%clk 0:02:26]} 14. Nd1 {[%clk 0:01:08]}  O-O {[%clk 0:02:23]} 15. Nf2 {[%clk 0:01:08]}  Rac8 {[%clk 0:02:22]} 16. Bd2 {[%clk 0:01:04]}  Nc4 {[%clk 0:02:19]} 17. Bc1 {[%clk 0:00:51]}  Rfd8 {[%clk 0:02:11]} 18. b3 {[%clk 0:00:50]}  Ne5 {[%clk 0:02:11]} 19. Qe2 {[%clk 0:00:44]}  Nxf3 {[%clk 0:02:04]} 20. gxf3 {[%clk 0:00:44]}  Bf8 {[%clk 0:01:53]} 21. Bd2 {[%clk 0:00:27]}  e5 {[%clk 0:01:43]} 22. Nf5 {[%clk 0:00:25]}  Qxc2 {[%clk 0:01:42]} 23. Bxb4 {[%clk 0:00:25]}  Qxb3 {[%clk 0:01:40]} 24. Reb1 {[%clk 0:00:22]}  Qc2 {[%clk 0:01:37]} 25. Qxc2 {[%clk 0:00:15]}  Rxc2 {[%clk 0:01:36]} 26. Ba5 {[%clk 0:00:15]}  Rd7 {[%clk 0:01:33]} 27. Kg1 {[%clk 0:00:16]}  exf4 {[%clk 0:01:24]} 28. Rc1 {[%clk 0:00:16]}  Rxc1+ {[%clk 0:01:08]} 29. Rxc1 {[%clk 0:00:16]}  g6 {[%clk 0:01:07]} 30. Nd4 {[%clk 0:00:15]}  Be7 {[%clk 0:00:59]} 31. Nd3 {[%clk 0:00:14]}  Nh5 {[%clk 0:00:55]} 32. Ne2 {[%clk 0:00:09]}  Bg5 {[%clk 0:00:45]} 33. Kf2 {[%clk 0:00:06]}  d5 {[%clk 0:00:16]} 34. e5 {[%clk 0:00:06]}  f6 {[%clk 0:00:15]} 35. e6 {[%clk 0:00:06]}  Re7 {[%clk 0:00:14]} 36. Rb1 {[%clk 0:00:05]}  Bc6 {[%clk 0:00:12]} 37. Rb8+ {[%clk 0:00:04]}  Re8 {[%clk 0:00:12]} 38. Rb6 {[%clk 0:00:03]}  Bxa4 {[%clk 0:00:11]} 39. Rxa6 {[%clk 0:00:03]}  Bb5 {[%clk 0:00:11]} 40. Rd6 {[%clk 0:00:02]}  Bxd3 {[%clk 0:00:11]} 41. Nd4 {[%clk 0:00:03]}  Bf5 {[%clk 0:00:11]} 42. Rxd5 {[%clk 0:00:03]}  Ng7 {[%clk 0:00:11]} 43. Rd6 {[%clk 0:00:03]}  Bxe6 {[%clk 0:00:10]} 44. Bc3 {[%clk 0:00:01]}  Bf7 {[%clk 0:00:10]} 45. Nc6 {[%clk 0:00:01]}  Bh4+ {[%clk 0:00:10]} 0-1


[Site "https://www.chess.com"]

[Event "Titled Tuesday Blitz November 22 Early 2022"]
[White "Nakamura, Hikaru"]
[Black "Harsh Suresh"]
[WhiteFideId "2016192"]
[BlackFideId "45018464"]
[WhiteElo "2909"]
[BlackElo "2227"]
[Result "1-0"]
[Round "04"]
[TimeControl "180+1"]
[Date "2022.11.22"]
[WhiteClock "0:00:08"]
[BlackClock "0:00:06"]

1. Nf3 {[%clk 0:03:00]}  Nf6 {[%clk 0:02:57]} 2. g3 {[%clk 0:03:01]}  b6 {[%clk 0:02:55]} 3. c4 {[%clk 0:02:59]}  Bb7 {[%clk 0:02:56]} 4. Nc3 {[%clk 0:02:57]}  g6 {[%clk 0:02:53]} 5. Bg2 {[%clk 0:02:55]}  Bg7 {[%clk 0:02:53]} 6. d4 {[%clk 0:02:56]}  O-O {[%clk 0:02:53]} 7. O-O {[%clk 0:02:51]}  e6 {[%clk 0:02:51]} 8. Qc2 {[%clk 0:02:47]}  d5 {[%clk 0:02:39]} 9. cxd5 {[%clk 0:02:44]}  Nxd5 {[%clk 0:02:36]} 10. Rd1 {[%clk 0:02:41]}  Nd7 {[%clk 0:02:31]} 11. Nxd5 {[%clk 0:02:32]}  Bxd5 {[%clk 0:02:29]} 12. e4 {[%clk 0:02:32]}  Bb7 {[%clk 0:02:29]} 13. Bg5 {[%clk 0:02:32]}  Bf6 {[%clk 0:02:22]} 14. Bh6 {[%clk 0:02:03]}  Bg7 {[%clk 0:02:19]} 15. Bxg7 {[%clk 0:01:57]}  Kxg7 {[%clk 0:02:20]} 16. b4 {[%clk 0:01:58]}  Rc8 {[%clk 0:02:14]} 17. Nd2 {[%clk 0:01:50]}  Qe7 {[%clk 0:01:57]} 18. Qb2 {[%clk 0:01:46]}  Rfd8 {[%clk 0:01:42]} 19. a3 {[%clk 0:01:44]}  Kg8 {[%clk 0:01:33]} 20. Rac1 {[%clk 0:01:40]}  Ba8 {[%clk 0:01:17]} 21. a4 {[%clk 0:01:08]}  c5 {[%clk 0:01:11]} 22. dxc5 {[%clk 0:01:08]}  bxc5 {[%clk 0:01:11]} 23. b5 {[%clk 0:01:09]}  Qf6 {[%clk 0:00:55]} 24. Qxf6 {[%clk 0:01:05]}  Nxf6 {[%clk 0:00:56]} 25. f3 {[%clk 0:01:06]}  Rd4 {[%clk 0:00:53]} 26. Nc4 {[%clk 0:01:01]}  Rcd8 {[%clk 0:00:52]} 27. Rxd4 {[%clk 0:00:59]}  cxd4 {[%clk 0:00:45]} 28. Rd1 {[%clk 0:00:54]}  g5 {[%clk 0:00:34]} 29. h3 {[%clk 0:00:33]}  h5 {[%clk 0:00:33]} 30. g4 {[%clk 0:00:33]}  hxg4 {[%clk 0:00:32]} 31. hxg4 {[%clk 0:00:34]}  Ne8 {[%clk 0:00:26]} 32. Bf1 {[%clk 0:00:34]}  f6 {[%clk 0:00:25]} 33. a5 {[%clk 0:00:33]}  f5 {[%clk 0:00:19]} 34. b6 {[%clk 0:00:19]}  fxe4 {[%clk 0:00:16]} 35. bxa7 {[%clk 0:00:16]}  e3 {[%clk 0:00:14]} 36. Nxe3 {[%clk 0:00:15]}  Bxf3 {[%clk 0:00:13]} 37. Rd3 {[%clk 0:00:08]}  Ra8 {[%clk 0:00:13]} 38. Nc4 {[%clk 0:00:07]}  Bd5 {[%clk 0:00:10]} 39. Nb6 {[%clk 0:00:04]}  Rxa7 {[%clk 0:00:10]} 40. Nxd5 {[%clk 0:00:04]}  exd5 {[%clk 0:00:10]} 41. Ra3 {[%clk 0:00:05]}  Nd6 {[%clk 0:00:10]} 42. a6 {[%clk 0:00:05]}  Nc4 {[%clk 0:00:10]} 43. Ra2 {[%clk 0:00:05]}  Kf7 {[%clk 0:00:09]} 44. Kf2 {[%clk 0:00:05]}  Ke6 {[%clk 0:00:09]} 45. Ke2 {[%clk 0:00:05]}  Kd6 {[%clk 0:00:09]} 46. Kd3 {[%clk 0:00:06]}  Kc5 {[%clk 0:00:09]} 47. Be2 {[%clk 0:00:06]}  Kb5 {[%clk 0:00:09]} 48. Kxd4 {[%clk 0:00:05]}  Kc6 {[%clk 0:00:07]} 49. Bxc4 {[%clk 0:00:06]}  dxc4 {[%clk 0:00:07]} 50. Kxc4 {[%clk 0:00:06]}  Kb6 {[%clk 0:00:07]} 51. Kb4 {[%clk 0:00:06]}  Kc6 {[%clk 0:00:03]} 52. Ra1 {[%clk 0:00:05]}  Kb6 {[%clk 0:00:04]} 53. Ra3 {[%clk 0:00:05]}  Kc6 {[%clk 0:00:04]} 54. Kc4 {[%clk 0:00:06]}  Kb6 {[%clk 0:00:04]} 55. Kd5 {[%clk 0:00:06]}  Kc7 {[%clk 0:00:02]} 56. Ke6 {[%clk 0:00:06]}  Kb8 {[%clk 0:00:02]} 57. Kf6 {[%clk 0:00:06]}  Rc7 {[%clk 0:00:02]} 58. Kxg5 {[%clk 0:00:06]}  Rc5+ {[%clk 0:00:02]} 59. Kh4 {[%clk 0:00:07]}  Ka7 {[%clk 0:00:03]} 60. g5 {[%clk 0:00:07]}  Rc4+ {[%clk 0:00:03]} 61. Kh5 {[%clk 0:00:07]}  Rc5 {[%clk 0:00:04]} 62. Kh6 {[%clk 0:00:08]}  Rc1 {[%clk 0:00:04]} 63. g6 {[%clk 0:00:08]}  Rh1+ {[%clk 0:00:04]} 64. Kg7 {[%clk 0:00:08]}  Rg1 {[%clk 0:00:05]} 65. Kh7 {[%clk 0:00:08]}  Rh1+ {[%clk 0:00:05]} 66. Kg8 {[%clk 0:00:09]}  Rg1 {[%clk 0:00:06]} 67. g7 {[%clk 0:00:09]}  Rg2 {[%clk 0:00:07]} 68. Ra4 {[%clk 0:00:08]}  Rg3 {[%clk 0:00:07]} 69. Kf7 {[%clk 0:00:08]}  Rf3+ {[%clk 0:00:07]} 70. Kg6 {[%clk 0:00:08]}  Rg3+ {[%clk 0:00:07]} 71. Kf6 {[%clk 0:00:09]}  Rf3+ {[%clk 0:00:07]} 72. Kg5 {[%clk 0:00:09]}  Rg3+ {[%clk 0:00:06]} 73. Rg4 {[%clk 0:00:08]} 1-0


[Site "https://www.chess.com"]

[Event "Titled Tuesday Blitz November 22 Early 2022"]
[White "Nanditha, V"]
[Black "Ismayil, Malak"]
[WhiteFideId "46626697"]
[BlackFideId "13412604"]
[WhiteElo "1564"]
[BlackElo "1879"]
[Result "1-0"]
[Round "04"]
[TimeControl "180+1"]
[Date "2022.11.23"]
[WhiteClock "0:00:15"]
[BlackClock "0:00:20"]

1. e4 {[%clk 0:03:00]}  e5 {[%clk 0:02:56]} 2. Nf3 {[%clk 0:03:00]}  Nc6 {[%clk 0:02:55]} 3. Nc3 {[%clk 0:03:00]}  Nf6 {[%clk 0:02:55]} 4. d4 {[%clk 0:03:00]}  exd4 {[%clk 0:02:55]} 5. Nxd4 {[%clk 0:03:01]}  Bc5 {[%clk 0:02:54]} 6. Be3 {[%clk 0:02:56]}  Bb6 {[%clk 0:02:51]} 7. Nxc6 {[%clk 0:02:51]}  bxc6 {[%clk 0:02:47]} 8. Bxb6 {[%clk 0:02:50]}  axb6 {[%clk 0:02:48]} 9. Bd3 {[%clk 0:02:48]}  Qe7 {[%clk 0:02:47]} 10. O-O {[%clk 0:02:45]}  O-O {[%clk 0:02:45]} 11. Qf3 {[%clk 0:02:41]}  d6 {[%clk 0:02:43]} 12. h3 {[%clk 0:02:40]}  Nd7 {[%clk 0:02:42]} 13. Rae1 {[%clk 0:02:35]}  Ne5 {[%clk 0:02:41]} 14. Qg3 {[%clk 0:02:36]}  f6 {[%clk 0:02:40]} 15. f4 {[%clk 0:02:35]}  Ng6 {[%clk 0:02:40]} 16. e5 {[%clk 0:02:32]}  f5 {[%clk 0:02:41]} 17. exd6 {[%clk 0:02:19]}  Qxd6 {[%clk 0:02:42]} 18. Rd1 {[%clk 0:02:14]}  Qc5+ {[%clk 0:02:38]} 19. Kh2 {[%clk 0:02:13]}  Be6 {[%clk 0:02:35]} 20. a3 {[%clk 0:02:08]}  b5 {[%clk 0:02:34]} 21. Rfe1 {[%clk 0:02:02]}  Rae8 {[%clk 0:02:22]} 22. Be2 {[%clk 0:01:34]}  b4 {[%clk 0:02:16]} 23. axb4 {[%clk 0:01:28]}  Qxb4 {[%clk 0:02:17]} 24. b3 {[%clk 0:01:19]}  Nxf4 {[%clk 0:02:01]} 25. Na2 {[%clk 0:01:03]}  Nxe2 {[%clk 0:01:58]} 26. Nxb4 {[%clk 0:01:00]}  Nxg3 {[%clk 0:01:57]} 27. Kxg3 {[%clk 0:01:01]}  c5 {[%clk 0:01:55]} 28. Nc6 {[%clk 0:01:01]}  f4+ {[%clk 0:01:46]} 29. Kf2 {[%clk 0:00:59]}  Kf7 {[%clk 0:01:32]} 30. Re5 {[%clk 0:00:51]}  c4 {[%clk 0:01:24]} 31. b4 {[%clk 0:00:47]}  Ra8 {[%clk 0:01:09]} 32. Rde1 {[%clk 0:00:43]}  Rfe8 {[%clk 0:01:08]} 33. R1e4 {[%clk 0:00:40]}  Ra2 {[%clk 0:00:52]} 34. Rxe6 {[%clk 0:00:36]}  Rxc2+ {[%clk 0:00:51]} 35. Kf3 {[%clk 0:00:33]}  Rc3+ {[%clk 0:00:50]} 36. Kxf4 {[%clk 0:00:32]}  Ra8 {[%clk 0:00:47]} 37. Re7+ {[%clk 0:00:32]}  Kf8 {[%clk 0:00:48]} 38. Re3 {[%clk 0:00:25]}  Rc2 {[%clk 0:00:47]} 39. Rf3 {[%clk 0:00:16]}  Rxg2 {[%clk 0:00:36]} 40. Rxc7 {[%clk 0:00:16]}  Re8 {[%clk 0:00:28]} 41. Ne5 {[%clk 0:00:15]}  Re2 {[%clk 0:00:22]} 42. Ng4 {[%clk 0:00:13]}  R2e4+ {[%clk 0:00:21]} 43. Kg3+ {[%clk 0:00:14]}  Kg8 {[%clk 0:00:21]} 44. Rff7 {[%clk 0:00:14]}  h5 {[%clk 0:00:19]} 45. Rxg7+ {[%clk 0:00:14]}  Kh8 {[%clk 0:00:19]} 46. Rh7+ {[%clk 0:00:14]}  Kg8 {[%clk 0:00:20]} 47. Nf6+ {[%clk 0:00:15]}  Kf8 {[%clk 0:00:20]} 48. Rcf7# {[%clk 0:00:15]} 1-0


[Site "https://www.chess.com"]

[Event "Titled Tuesday Blitz November 22 Early 2022"]
[White "Narayanan, Srinath"]
[Black "Krzywda, Andrzej"]
[WhiteFideId "5018420"]
[BlackFideId "1114565"]
[WhiteElo "2459"]
[BlackElo "2149"]
[Result "1-0"]
[Round "04"]
[TimeControl "180+1"]
[Date "2022.11.23"]
[WhiteClock "0:01:11"]
[BlackClock "0:00:02"]

1. d4 {[%clk 0:03:00]}  Nf6 {[%clk 0:02:59]} 2. c4 {[%clk 0:03:00]}  e6 {[%clk 0:02:59]} 3. g3 {[%clk 0:02:59]}  d5 {[%clk 0:02:59]} 4. Bg2 {[%clk 0:02:58]}  Bb4+ {[%clk 0:02:59]} 5. Bd2 {[%clk 0:02:58]}  Be7 {[%clk 0:02:59]} 6. Nf3 {[%clk 0:02:58]}  O-O {[%clk 0:02:59]} 7. Qc2 {[%clk 0:02:59]}  c6 {[%clk 0:03:00]} 8. O-O {[%clk 0:02:57]}  Ne4 {[%clk 0:03:00]} 9. b3 {[%clk 0:02:50]}  f5 {[%clk 0:02:59]} 10. Ne5 {[%clk 0:02:47]}  Nd7 {[%clk 0:02:58]} 11. Nd3 {[%clk 0:02:46]}  Nxd2 {[%clk 0:02:50]} 12. Nxd2 {[%clk 0:02:45]}  Nf6 {[%clk 0:02:50]} 13. Rad1 {[%clk 0:02:42]}  Bd7 {[%clk 0:02:50]} 14. f3 {[%clk 0:02:41]}  Rc8 {[%clk 0:02:46]} 15. e4 {[%clk 0:02:40]}  fxe4 {[%clk 0:02:27]} 16. fxe4 {[%clk 0:02:39]}  Ng4 {[%clk 0:02:27]} 17. Rde1 {[%clk 0:02:33]}  Bg5 {[%clk 0:02:22]} 18. Rxf8+ {[%clk 0:02:32]}  Qxf8 {[%clk 0:02:21]} 19. Nf1 {[%clk 0:02:33]}  Qf6 {[%clk 0:01:49]} 20. e5 {[%clk 0:02:27]}  Qg6 {[%clk 0:01:49]} 21. Qe2 {[%clk 0:02:21]}  Rf8 {[%clk 0:01:43]} 22. Nc5 {[%clk 0:02:19]}  Bc8 {[%clk 0:01:30]} 23. Qxg4 {[%clk 0:02:06]}  b6 {[%clk 0:01:23]} 24. h4 {[%clk 0:02:05]}  bxc5 {[%clk 0:01:13]} 25. Qxg5 {[%clk 0:02:05]}  Qc2 {[%clk 0:01:00]} 26. Qe3 {[%clk 0:01:52]}  cxd4 {[%clk 0:00:49]} 27. Qxd4 {[%clk 0:01:52]}  Qxa2 {[%clk 0:00:49]} 28. cxd5 {[%clk 0:01:29]}  cxd5 {[%clk 0:00:49]} 29. Ra1 {[%clk 0:01:30]}  Qxb3 {[%clk 0:00:48]} 30. Rxa7 {[%clk 0:01:30]}  Qb1 {[%clk 0:00:33]} 31. Qc5 {[%clk 0:01:25]}  Qb2 {[%clk 0:00:17]} 32. Qc7 {[%clk 0:01:17]}  Qd4+ {[%clk 0:00:14]} 33. Kh1 {[%clk 0:01:17]}  Qg4 {[%clk 0:00:14]} 34. Ra8 {[%clk 0:01:10]}  Rxf1+ {[%clk 0:00:02]} 35. Bxf1 {[%clk 0:01:11]}  Qf3+ {[%clk 0:00:01]} 36. Bg2 {[%clk 0:01:11]}  Qd1+ {[%clk 0:00:02]} 37. Kh2 {[%clk 0:01:11]} 1-0


[Site "https://www.chess.com"]

[Event "Titled Tuesday Blitz November 22 Early 2022"]
[White "Nugumanov, Bakhtiyar"]
[Black "Ilkhomi, Jaloliddin"]
[WhiteFideId "13701797"]
[BlackFideId "14700948"]
[WhiteElo "2287"]
[BlackElo "2045"]
[Result "0-1"]
[Round "04"]
[TimeControl "180+1"]
[Date "2022.11.23"]
[WhiteClock "0:00:05"]
[BlackClock "0:00:13"]

1. Nf3 {[%clk 0:02:59]}  Nf6 {[%clk 0:03:00]} 2. c4 {[%clk 0:02:59]}  e6 {[%clk 0:02:59]} 3. g3 {[%clk 0:02:59]}  d5 {[%clk 0:02:58]} 4. Bg2 {[%clk 0:03:00]}  Be7 {[%clk 0:02:58]} 5. O-O {[%clk 0:03:00]}  O-O {[%clk 0:02:59]} 6. b3 {[%clk 0:03:01]}  b6 {[%clk 0:02:58]} 7. Bb2 {[%clk 0:03:02]}  Bb7 {[%clk 0:02:59]} 8. e3 {[%clk 0:03:02]}  Nbd7 {[%clk 0:02:59]} 9. Nc3 {[%clk 0:03:02]}  a6 {[%clk 0:02:59]} 10. Qe2 {[%clk 0:02:59]}  Bd6 {[%clk 0:02:58]} 11. d3 {[%clk 0:02:58]}  Qe7 {[%clk 0:02:58]} 12. Nh4 {[%clk 0:02:56]}  Ba3 {[%clk 0:02:49]} 13. cxd5 {[%clk 0:02:48]}  Bxb2 {[%clk 0:02:48]} 14. Qxb2 {[%clk 0:02:41]}  exd5 {[%clk 0:02:33]} 15. d4 {[%clk 0:02:26]}  Qe6 {[%clk 0:02:23]} 16. Rac1 {[%clk 0:02:20]}  c5 {[%clk 0:02:21]} 17. Rfd1 {[%clk 0:02:18]}  Rac8 {[%clk 0:02:21]} 18. Nf3 {[%clk 0:02:10]}  Rfd8 {[%clk 0:02:18]} 19. Na4 {[%clk 0:02:03]}  h6 {[%clk 0:02:08]} 20. Ne5 {[%clk 0:01:59]}  Nxe5 {[%clk 0:02:03]} 21. dxe5 {[%clk 0:02:00]}  Nd7 {[%clk 0:02:02]} 22. f4 {[%clk 0:01:59]}  b5 {[%clk 0:01:54]} 23. Nc3 {[%clk 0:01:59]}  Nb6 {[%clk 0:01:54]} 24. Qf2 {[%clk 0:01:54]}  Ba8 {[%clk 0:01:34]} 25. Rd2 {[%clk 0:01:38]}  f6 {[%clk 0:01:15]} 26. exf6 {[%clk 0:01:34]}  Qxf6 {[%clk 0:01:15]} 27. h3 {[%clk 0:01:15]}  d4 {[%clk 0:01:14]} 28. Ne4 {[%clk 0:01:13]}  Bxe4 {[%clk 0:01:11]} 29. Bxe4 {[%clk 0:01:14]}  dxe3 {[%clk 0:01:09]} 30. Qxe3 {[%clk 0:01:15]}  Rxd2 {[%clk 0:01:08]} 31. Qxd2 {[%clk 0:01:14]}  Rd8 {[%clk 0:01:06]} 32. Qf2 {[%clk 0:01:06]}  c4 {[%clk 0:01:03]} 33. Bb7 {[%clk 0:00:58]}  c3 {[%clk 0:00:53]} 34. Rc2 {[%clk 0:00:43]}  Nd5 {[%clk 0:00:43]} 35. a3 {[%clk 0:00:27]}  Ne7 {[%clk 0:00:26]} 36. Qe3 {[%clk 0:00:21]}  Rd1+ {[%clk 0:00:21]} 37. Kh2 {[%clk 0:00:21]}  Nf5 {[%clk 0:00:12]} 38. Qxc3 {[%clk 0:00:12]}  Qxc3 {[%clk 0:00:12]} 39. Rxc3 {[%clk 0:00:13]}  Rd2+ {[%clk 0:00:13]} 40. Kg1 {[%clk 0:00:10]}  Ra2 {[%clk 0:00:13]} 41. g4 {[%clk 0:00:10]}  Nd4 {[%clk 0:00:12]} 42. Bxa6 {[%clk 0:00:06]}  Ne2+ {[%clk 0:00:13]} 43. Kh1 {[%clk 0:00:05]}  Nxc3 {[%clk 0:00:13]} 0-1


[Site "https://www.chess.com"]

[Event "Titled Tuesday Blitz November 22 Early 2022"]
[White "Oparin, Grigoriy"]
[Black "Odinaev, Timur"]
[WhiteFideId "24125890"]
[BlackFideId "4163770"]
[WhiteElo "2639"]
[BlackElo "2306"]
[Result "1-0"]
[Round "04"]
[TimeControl "180+1"]
[Date "2022.11.22"]
[WhiteClock "0:02:09"]
[BlackClock "0:00:25"]

1. g3 {[%clk 0:02:54]}  Nf6 {[%clk 0:02:59]} 2. Bg2 {[%clk 0:02:55]}  g6 {[%clk 0:02:59]} 3. c4 {[%clk 0:02:56]}  Bg7 {[%clk 0:03:00]} 4. Nc3 {[%clk 0:02:56]}  O-O {[%clk 0:03:00]} 5. Nf3 {[%clk 0:02:57]}  d6 {[%clk 0:03:00]} 6. O-O {[%clk 0:02:56]}  e5 {[%clk 0:03:00]} 7. d4 {[%clk 0:02:57]}  Nbd7 {[%clk 0:03:00]} 8. e4 {[%clk 0:02:57]}  c6 {[%clk 0:03:00]} 9. Qc2 {[%clk 0:02:55]}  Qb6 {[%clk 0:02:57]} 10. Rd1 {[%clk 0:02:54]}  Re8 {[%clk 0:02:55]} 11. h3 {[%clk 0:02:50]}  exd4 {[%clk 0:02:33]} 12. Nxd4 {[%clk 0:02:51]}  Nc5 {[%clk 0:02:29]} 13. Be3 {[%clk 0:02:48]}  a5 {[%clk 0:02:27]} 14. Nb3 {[%clk 0:02:44]}  Qb4 {[%clk 0:02:17]} 15. Nxc5 {[%clk 0:02:39]}  dxc5 {[%clk 0:02:16]} 16. Na4 {[%clk 0:02:36]}  Be6 {[%clk 0:02:02]} 17. b3 {[%clk 0:02:19]}  Bxc4 {[%clk 0:00:50]} 18. bxc4 {[%clk 0:02:15]}  Nxe4 {[%clk 0:00:32]} 19. Rab1 {[%clk 0:02:13]}  Qa3 {[%clk 0:00:25]} 20. Bxe4 {[%clk 0:02:09]} 1-0


[Site "https://www.chess.com"]